bitfinex/quotes_SOLUSD_20260120
["timestamp","ask_amount","ask_price","bid_price","bid_amount"]
[1768895290679,4.33886104,131.19,131.16,11.99239277]
[1768895291595,7.91273273,131.2,131.17,4.36836504]
[1768895291970,4.33886104,131.2,131.17,4.36836504]
[1768895292285,4.33886104,131.2,131.17,11.99196189]
[1768895292693,4.33886104,131.2,131.16,11.99264073]
[1768895292893,4.33886104,131.18,131.15,21.06836504]
[1768895293279,4.33886104,131.18,131.15,16.7]
[1768895293484,4.33886104,131.17,131.15,16.7]
[1768895293975,4.33886104,131.17,131.14,28.69378895]
[1768895294175,7.91273273,131.17,131.14,28.69378895]
[1768895294402,4.33886104,131.17,131.14,28.69378895]
[1768895294693,7.91273273,131.17,131.14,28.69378895]
[1768895295396,4.33886104,131.17,131.14,28.69378895]
[1768895295696,4.33886104,131.2,131.15,4.36836504]
[1768895295872,26.67332735,131.22,131.15,4.36836504]
[1768895295873,7.91273273,131.18,131.15,4.36836504]
[1768895297294,4.33886104,131.17,131.14,28.69378895]
[1768895298878,4.33886104,131.17,131.14,11.99378895]
[1768895299078,4.33886104,131.17,131.14,28.69378895]
[1768895300205,4.33886104,131.17,131.15,4.36836504]
[1768895301405,4.33886104,131.17,131.15,11.99320769]
[1768895304204,4.10665689,131.18,131.15,11.99320769]
[1768895307902,4.10665689,131.17,131.15,7.62484265]
[1768895308103,4.10665689,131.17,131.15,16.7]
[1768895309107,4.10665689,131.17,131.15,24.32485655]
[1768895309806,4.10665689,131.17,131.15,16.7]
[1768895310194,4.10665689,131.17,131.14,4.36836504]
[1768895310407,4.10665689,131.17,131.14,28.69368861]
[1768895312822,7.68052858,131.17,131.14,21.06836504]
[1768895313093,4.10665689,131.16,131.14,21.06836504]
[1768895314405,3.57387169,131.17,131.14,21.06836504]
[1768895314603,7.68052858,131.17,131.14,21.06836504]
[1768895315998,4.10665689,131.16,131.14,16.7]
[1768895317114,4.10665689,131.16,131.13,11.9943771]
[1768895317302,4.10665689,131.16,131.13,21.06836504]
[1768895317704,4.10665689,131.16,131.13,4.36836504]
[1768895317904,4.10665689,131.16,131.13,21.06836504]
[1768895320714,3.57387169,131.17,131.14,4.36836504]
[1768895321224,7.68052858,131.17,131.14,4.36836504]
[1768895321913,4.10665689,131.17,131.14,4.36836504]
[1768895324423,4.11458302,131.18,131.15,4.36836504]
[1768895326919,4.11458302,131.18,131.15,21.06836504]
[1768895327424,4.11458302,131.17,131.14,4.36836504]
[1768895327624,7.68845471,131.17,131.14,21.06836504]
[1768895328828,4.11458302,131.17,131.14,21.06836504]
[1768895329431,4.11458302,131.17,131.14,4.36836504]
[1768895329722,4.11458302,131.19,131.15,4.36836504]
[1768895330430,7.68845471,131.19,131.15,4.36836504]
[1768895330803,4.11458302,131.18,131.15,4.36836504]
[1768895333412,4.11458302,131.18,131.14,28.55251663]
[1768895333736,3.57387169,131.18,131.14,28.55251663]
[1768895334032,4.43514464,131.17,131.14,28.55251663]
[1768895334230,4.43514464,131.17,131.15,4.22721541]
[1768895334638,4.43514464,131.18,131.15,4.22721541]
[1768895335009,4.43514464,131.18,131.14,24.32530122]
[1768895335212,4.43514464,131.18,131.14,20.92721541]
[1768895337024,4.43514464,131.18,131.14,28.5526402]
[1768895337418,4.43514464,131.18,131.15,4.22721541]
[1768895344518,8.00901633,131.19,131.16,4.22721541]
[1768895344832,4.43514464,131.19,131.16,4.22721541]
[1768895345140,4.43514464,131.19,131.15,15.42584752]
[1768895346227,4.43514464,131.19,131.15,11.85197583]
[1768895347739,4.43514464,131.19,131.16,11.85127544]
[1768895351549,4.43514464,131.21,131.17,4.22721541]
[1768895351852,14.03051878,131.23,131.2,4.22721541]
[1768895351853,4.43514464,131.23,131.2,4.22721541]
[1768895352720,4.43514464,131.24,131.21,4.22721541]
[1768895353152,4.43514464,131.24,131.2,24.5011937]
[1768895354753,4.43514464,131.24,131.2,20.92721541]
[1768895355239,4.43514464,131.24,131.21,7.8011937]
[1768895355852,4.43514464,131.24,131.21,4.22721541]
[1768895356055,4.43514464,131.24,131.21,7.8011937]
[1768895356256,4.43514464,131.25,131.22,4.22721541]
[1768895357334,7.61762529,131.28,131.23,4.22721541]
[1768895357335,4.43514464,131.26,131.23,4.22721541]
[1768895357530,4.43514464,131.28,131.24,3.57397829]
[1768895357734,4.43514464,131.28,131.24,4.22721541]
[1768895357933,4.43514464,131.28,131.24,7.8011937]
[1768895358147,4.43514464,131.28,131.24,4.22721541]
[1768895358355,4.43514464,131.28,131.24,7.8011937]
[1768895360557,4.43514464,131.28,131.25,7.8011937]
[1768895361357,4.43514464,131.28,131.2,16.7]
[1768895361565,3.57397829,131.25,131.2,20.27397829]
[1768895361765,4.37420136,131.24,131.21,0.20209291]
[1768895362262,4.37420136,131.24,131.21,3.7760712]
[1768895362935,4.37420136,131.24,131.21,0.20209291]
[1768895363135,4.37420136,131.24,131.21,7.82340433]
[1768895364367,4.37420136,131.24,131.21,11.39738262]
[1768895367578,4.37420136,131.24,131.2,7.62151613]
[1768895367876,4.37420136,131.24,131.22,16.7]
[1768895369857,4.37420136,131.24,131.21,7.62136928]
[1768895370058,4.37420136,131.24,131.22,16.7]
[1768895370866,4.48050649,131.25,131.22,16.7]
[1768895372667,4.48050649,131.25,131.21,7.82346219]
[1768895372899,4.48050649,131.24,131.22,16.7]
[1768895378058,3.57397829,131.26,131.22,16.7]
[1768895378258,4.48050649,131.25,131.22,16.7]
[1768895378978,4.48050649,131.24,131.2,7.82365445]
[1768895379190,4.48050649,131.24,131.21,16.7]
[1768895379360,4.48050649,131.24,131.21,21.0811177]
[1768895380889,8.05448478,131.24,131.21,21.0811177]
[1768895381094,4.48050649,131.24,131.21,21.0811177]
[1768895382264,4.48050649,131.24,131.22,16.7]
[1768895385297,4.24343876,131.23,131.2,7.62156154]
[1768895385477,4.24343876,131.23,131.21,16.7]
[1768895386790,4.24343876,131.26,131.21,20.86197221]
[1768895386995,4.24343876,131.24,131.21,20.86197221]
[1768895387396,4.24343876,131.27,131.22,4.16197221]
[1768895387598,4.24343876,131.25,131.22,4.16197221]
[1768895388400,4.24343876,131.25,131.22,11.782699]
[1768895388885,4.24343876,131.25,131.21,28.48312019]
[1768895389683,4.24343876,131.24,131.2,11.78364568]
[1768895389895,4.24343876,131.24,131.21,16.7]
[1768895390513,4.24343876,131.24,131.21,20.86197221]
[1768895392888,4.24343876,131.24,131.22,16.7]
[1768895393201,4.23530914,131.25,131.22,21.07360078]
[1768895393506,7.80928743,131.26,131.23,4.37360078]
[1768895393886,4.23530914,131.3,131.25,7.94757907]
[1768895394205,4.23530914,131.3,131.26,16.7]
[1768895394381,4.23530914,131.3,131.26,16.65425039]
[1768895394993,4.23530914,131.29,131.26,16.65425039]
[1768895396101,4.23530914,131.29,131.26,24.27264538]
[1768895399897,4.23530914,131.29,131.26,16.65425039]
[1768895400904,4.23530914,131.3,131.26,21.02785117]
[1768895401108,4.23530914,131.3,131.26,16.65425039]
[1768895401310,4.23530914,131.28,131.26,16.65425039]
[1768895401615,4.23530914,131.27,131.23,15.56751929]
[1768895401810,4.23530914,131.27,131.24,16.7]
[1768895402010,4.23530914,131.27,131.25,16.7]
[1768895402216,4.23530914,131.26,131.22,7.94757907]
[1768895402397,4.23530914,131.26,131.23,16.7]
[1768895402795,4.23530914,131.26,131.23,21.07360078]
[1768895403120,4.23530914,131.26,131.23,32.2677011]
[1768895403296,4.23530914,131.28,131.24,4.37360078]
[1768895403707,4.23530914,131.3,131.26,7.94757907]
[1768895404016,4.23530914,131.3,131.27,21.07360078]
[1768895404396,4.23530914,131.3,131.27,16.7]
[1768895406420,7.80928743,131.3,131.27,16.7]
[1768895407208,4.23530914,131.3,131.27,16.7]
[1768895407521,4.23530914,131.3,131.27,21.07360078]
[1768895408419,4.23530914,131.31,131.27,24.31777491]
[1768895408626,4.23530914,131.3,131.28,16.7]
[1768895410627,4.23530914,131.3,131.27,4.37360078]
[1768895410802,4.23530914,131.3,131.28,16.7]
[1768895413430,4.23530914,131.3,131.26,4.37360078]
[1768895413634,4.23530914,131.31,131.27,21.07360078]
[1768895413809,4.23530914,131.3,131.27,21.07360078]
[1768895414528,4.23530914,131.3,131.27,28.69145927]
[1768895414727,4.23530914,131.31,131.27,28.69145927]
[1768895414915,4.23530914,131.31,131.28,4.37360078]
[1768895415625,0.2,131.32,131.28,7.94162356]
[1768895415814,4.43530914,131.32,131.29,7.94162356]
[1768895416013,0.2,131.32,131.3,16.7]
[1768895417127,4.43530914,131.32,131.3,16.7]
[1768895417324,4.43530914,131.32,131.29,11.99010535]
[1768895417510,4.43530914,131.32,131.3,16.7]
[1768895420120,4.43530914,131.32,131.27,11.99131383]
[1768895420430,4.23530914,131.29,131.28,16.68]
[1768895423730,4.27021325,131.28,131.24,16.68]
[1768895423931,4.27021325,131.25,131.24,16.68]
[1768895424120,4.21021326,131.25,131.24,16.68]
[1768895424631,4.21021326,131.25,131.24,12.18]
[1768895424632,7.77823604,131.25,131.24,12.18]
[1768895424931,3.56802278,131.25,131.21,4.08731444]
[1768895425134,3.56802278,131.23,131.2,4.08731444]
[1768895425541,3.56802278,131.23,131.18,11.19087683]
[1768895425721,3.56802278,131.22,131.18,20.76731444]
[1768895426036,7.83823603,131.22,131.18,20.76731444]
[1768895426238,7.83823603,131.22,131.18,28.39029699]
[1768895427329,4.27021325,131.22,131.19,11.70974466]
[1768895430038,3.56802278,131.23,131.19,4.08731444]
[1768895430248,3.56802278,131.21,131.18,4.08731444]
[1768895430458,4.27021325,131.21,131.18,4.08731444]
[1768895430625,7.83823603,131.21,131.18,4.08731444]
[1768895431730,4.27021325,131.21,131.18,4.08731444]
[1768895432052,7.83823603,131.21,131.18,4.08731444]
[1768895432346,3.56802278,131.21,131.18,11.71030543]
[1768895432521,3.56802278,131.21,131.19,4.08731444]
[1768895433943,3.56802278,131.21,131.18,4.08731444]
[1768895434935,7.83823603,131.21,131.18,4.08731444]
[1768895436615,3.56802278,131.21,131.19,4.08731444]
[1768895436835,4.27021325,131.24,131.19,4.08731444]
[1768895437064,7.83823603,131.24,131.21,4.08731444]
[1768895437651,3.56802278,131.23,131.21,4.08731444]
[1768895438160,7.83823603,131.23,131.2,4.08731444]
[1768895442664,3.56802278,131.23,131.2,4.08731444]
[1768895443063,7.75987759,131.23,131.2,4.08731444]
[1768895443270,3.56802278,131.22,131.2,4.08731444]
[1768895443560,3.56802278,131.22,131.18,16.7]
[1768895443561,7.75987759,131.21,131.18,16.7]
[1768895443766,3.56802278,131.19,131.18,16.7]
[1768895443949,3.50802279,131.19,131.18,16.7]
[1768895445264,3.56802278,131.2,131.18,21.12740482]
[1768895445642,3.56802278,131.2,131.18,4.42740482]
[1768895447768,7.75987759,131.19,131.16,4.42740482]
[1768895447953,3.56802278,131.18,131.16,4.42740482]
[1768895448155,3.50802279,131.18,131.16,4.42740482]
[1768895448360,3.50802279,131.18,131.15,4.42740482]
[1768895448558,7.6998776,131.18,131.15,4.42740482]
[1768895448866,7.62206372,131.2,131.13,4.42740482]
[1768895448867,7.75987759,131.16,131.13,4.42740482]
[1768895450668,3.56802278,131.17,131.14,4.42740482]
[1768895450962,7.75987759,131.17,131.14,4.42740482]
[1768895455358,3.56802278,131.16,131.14,4.42740482]
[1768895458279,3.50802279,131.16,131.14,4.42740482]
[1768895459676,4.306634,131.15,131.12,28.89036248]
[1768895459875,3.50802279,131.16,131.13,4.46403265]
[1768895460257,3.56802278,131.15,131.13,4.46403265]
[1768895460458,3.56802278,131.14,131.12,4.56403265]
[1768895460779,3.50802279,131.14,131.12,4.56403265]
[1768895462161,4.306634,131.13,131.12,0.1]
[1768895462473,3.50802279,131.14,131.12,0.1]
[1768895464596,7.87465678,131.13,131.1,4.56403265]
[1768895464960,7.87465678,131.14,131.11,4.46403265]
[1768895468880,3.56802278,131.14,131.11,4.46403265]
[1768895469585,7.87465678,131.14,131.11,4.46403265]
[1768895470976,3.56802278,131.14,131.11,4.46403265]
[1768895471964,3.56802278,131.14,131.09,0.1]
[1768895471965,3.56802278,131.12,131.09,0.1]
[1768895472174,3.56802278,131.11,131.09,0.1]
[1768895472584,3.50802279,131.11,131.09,0.1]
[1768895472772,3.56802278,131.11,131.09,0.1]
[1768895473368,7.86588315,131.12,131.09,0.1]
[1768895474891,7.87630434,131.12,131.09,0.1]
[1768895475691,3.57844397,131.11,131.09,0.1]
[1768895476871,4.29786037,131.12,131.09,0.1]
[1768895477072,7.87630434,131.12,131.09,0.1]
[1768895478689,4.29786037,131.14,131.09,3.67844397]
[1768895478866,4.29786037,131.14,131.11,4.46403265]
[1768895479470,4.29786037,131.16,131.11,4.46403265]
[1768895479671,7.87630434,131.15,131.11,4.46403265]
[1768895480795,4.29786037,131.15,131.11,4.46403265]
[1768895481094,7.87630434,131.15,131.11,4.46403265]
[1768895483390,4.13375833,131.14,131.11,4.46403265]
[1768895483579,7.7122023,131.14,131.11,4.46403265]
[1768895483780,4.13375833,131.14,131.11,4.46403265]
[1768895484997,7.7122023,131.12,131.09,4.38977405]
[1768895485701,7.7122023,131.13,131.09,4.38977405]
[1768895488475,4.13375833,131.13,131.09,12.01800215]
[1768895488680,7.7122023,131.13,131.09,12.01800215]
[1768895489786,4.13375833,131.13,131.09,12.01800215]
[1768895490193,7.7122023,131.14,131.1,4.28977405]
[1768895490995,4.13375833,131.13,131.1,4.28977405]
[1768895491788,4.13375833,131.13,131.1,11.91734975]
[1768895492191,4.13375833,131.14,131.11,4.28977405]
[1768895493402,4.13375833,131.16,131.12,4.28977405]
[1768895493603,7.7122023,131.15,131.11,11.9166005]
[1768895493990,4.13375833,131.14,131.11,11.9166005]
[1768895495204,4.13375833,131.13,131.1,11.9173829]
[1768895495505,7.7122023,131.14,131.11,4.28977405]
[1768895498509,4.13375833,131.14,131.11,4.28977405]
[1768895498716,7.7122023,131.14,131.11,4.28977405]
[1768895500000,4.13375833,131.14,131.11,4.28977405]
[1768895500811,4.13375833,131.16,131.11,4.28977405]
[1768895501109,3.57844397,131.16,131.12,4.28977405]
[1768895501306,4.13375833,131.15,131.12,4.28977405]
[1768895501607,114.32,131.18,131.12,4.28977405]
[1768895501608,105.22330341,131.18,131.12,4.28977405]
[1768895501815,7.7122023,131.16,131.12,4.28977405]
[1768895502614,3.57844397,131.15,131.11,4.28977405]
[1768895503017,7.87630434,131.15,131.11,4.28977405]
[1768895504111,4.29786037,131.15,131.12,4.12559526]
[1768895504289,7.87630434,131.16,131.12,4.12559526]
[1768895507313,4.29786037,131.16,131.12,4.12559526]
[1768895507514,4.29786037,131.16,131.11,7.62696014]
[1768895507515,7.87630434,131.14,131.11,4.12559526]
[1768895508303,7.87630434,131.14,131.1,4.12559526]
[1768895508808,7.87630434,131.13,131.09,4.22559526]
[1768895509599,7.87630434,131.13,131.09,11.85389083]
[1768895509798,4.29786037,131.13,131.09,11.85389083]
[1768895510113,4.29786037,131.13,131.1,4.12559526]
[1768895510317,7.87630434,131.16,131.11,4.12559526]
[1768895510623,4.29786037,131.16,131.12,4.12559526]
[1768895511123,7.87630434,131.16,131.12,4.12559526]
[1768895512416,4.29786037,131.17,131.13,4.12559526]
[1768895512599,4.29786037,131.16,131.13,4.12559526]
[1768895514726,7.87630434,131.17,131.13,4.12559526]
[1768895515115,7.87630434,131.17,131.14,4.46844813]
[1768895515622,4.29786037,131.2,131.14,4.46844813]
[1768895515825,7.87630434,131.19,131.15,4.46844813]
[1768895516202,24.34182615,131.21,131.13,4.46844813]
[1768895516203,4.29786037,131.17,131.13,4.46844813]
[1768895516522,7.87630434,131.17,131.13,4.46844813]
[1768895516894,7.87630434,131.17,131.13,12.09432639]
[1768895517098,7.87630434,131.17,131.14,4.46844813]
[1768895518410,4.29786037,131.17,131.14,4.46844813]
[1768895518729,7.87630434,131.17,131.14,4.46844813]
[1768895519826,7.87630434,131.16,131.12,4.46844813]
[1768895520029,4.29786037,131.14,131.11,12.09510657]
[1768895520327,7.87630434,131.15,131.11,12.09510657]
[1768895522429,7.87630434,131.15,131.12,4.46844813]
[1768895522614,3.57844397,131.16,131.12,4.46844813]
[1768895522809,4.29786037,131.17,131.13,4.46844813]
[1768895522810,7.87630434,131.17,131.13,4.46844813]
[1768895524414,101.89786037,131.19,131.14,4.46844813]
[1768895524637,7.87630434,131.18,131.14,4.46844813]
[1768895525611,97.6,131.19,131.14,3.57844397]
[1768895525818,97.6,131.19,131.17,4.46844813]
[1768895526017,4.29786037,131.2,131.17,4.46844813]
[1768895526214,7.87630434,131.2,131.17,4.46844813]
[1768895526430,4.25488176,131.17,131.13,4.46844813]
[1768895526718,7.83332573,131.16,131.13,7.62600604]
[1768895526921,7.83332573,131.16,131.13,12.09445417]
[1768895526922,4.25488176,131.16,131.13,12.09445417]
[1768895527948,7.83332573,131.17,131.13,12.09445417]
[1768895529344,7.83332573,131.17,131.14,4.46844813]
[1768895529515,7.83332573,131.18,131.14,4.46844813]
[1768895529919,7.83332573,131.17,131.14,4.46844813]
[1768895530846,4.25488176,131.17,131.14,4.46844813]
[1768895531640,105.22195489,131.2,131.14,12.09351848]
[1768895531641,4.25488176,131.19,131.14,12.09351848]
[1768895531841,4.25488176,131.18,131.14,12.09351848]
[1768895532028,7.83332573,131.18,131.14,12.09351848]
[1768895532728,7.83332573,131.18,131.14,4.46844813]
[1768895532923,4.25488176,131.18,131.14,4.46844813]
[1768895533124,3.57844397,131.17,131.14,12.09378332]
[1768895533641,3.57844397,131.17,131.14,4.46844813]
[1768895535040,4.25488176,131.18,131.14,4.46844813]
[1768895535232,7.83029193,131.18,131.14,4.46844813]
[1768895539249,3.57541017,131.16,131.13,4.46844813]
[1768895540042,7.83029193,131.17,131.13,4.46844813]
[1768895542150,3.57541017,131.16,131.13,4.46844813]
[1768895545352,7.83029193,131.16,131.13,4.46844813]
[1768895546153,3.57541017,131.16,131.13,4.46844813]
[1768895546552,7.83029193,131.16,131.13,4.46844813]
[1768895548248,4.25488176,131.16,131.13,4.46844813]
[1768895548457,7.83029193,131.16,131.13,4.46844813]
[1768895549062,4.25488176,131.17,131.13,4.46844813]
[1768895549743,7.83029193,131.17,131.13,4.46844813]
[1768895550181,4.25488176,131.17,131.13,4.46844813]
[1768895550348,7.83029193,131.17,131.13,4.46844813]
[1768895552264,7.83029193,131.17,131.13,12.09439029]
[1768895552577,109.47696816,131.2,131.14,4.33534364]
[1768895552745,105.43029193,131.2,131.14,3.57541017]
[1768895552951,105.43029193,131.2,131.13,7.62594216]
[1768895552952,3.57541017,131.19,131.15,4.33534364]
[1768895553647,101.85488176,131.2,131.15,4.33534364]
[1768895553863,7.83029193,131.19,131.15,4.33534364]
[1768895554868,24.32140615,131.21,131.16,4.33534364]
[1768895554869,4.25488176,131.21,131.16,4.33534364]
[1768895555169,7.83029193,131.22,131.17,4.33534364]
[1768895556067,3.57541017,131.2,131.17,4.33534364]
[1768895559551,7.83029193,131.2,131.17,4.33534364]
[1768895560375,3.57541017,131.19,131.17,4.33534364]
[1768895561082,4.25488176,131.2,131.17,4.33534364]
[1768895561253,4.25488176,131.2,131.17,11.958884]
[1768895561655,7.83029193,131.2,131.17,11.958884]
[1768895562051,3.57541017,131.2,131.18,4.33534364]
[1768895562456,4.25488176,131.21,131.18,4.33534364]
[1768895563075,7.83029193,131.21,131.18,4.33534364]
[1768895563572,4.25488176,131.21,131.18,11.95832925]
[1768895563778,7.78183298,131.22,131.19,4.25453713]
[1768895564259,4.20642281,131.21,131.18,4.25453713]
[1768895564466,97.6,131.23,131.17,28.57806805]
[1768895564467,3.57541017,131.2,131.17,28.57806805]
[1768895564651,3.57541017,131.2,131.17,4.25453713]
[1768895564855,3.57541017,131.19,131.16,11.87859087]
[1768895565073,7.78183298,131.19,131.16,11.87859087]
[1768895565879,4.20642281,131.19,131.16,11.87859087]
[1768895566065,7.78183298,131.19,131.16,11.87859087]
[1768895566484,3.57541017,131.19,131.16,11.87859087]
[1768895569260,3.57541017,131.19,131.17,4.25453713]
[1768895571296,4.20642281,131.21,131.18,4.25453713]
[1768895571464,3.57541017,131.21,131.18,4.25453713]
[1768895571664,7.78183298,131.22,131.18,4.25453713]
[1768895572277,3.57541017,131.22,131.18,4.25453713]
[1768895572485,7.78183298,131.22,131.18,4.25453713]
[1768895572691,4.20642281,131.22,131.18,4.25453713]
[1768895572860,3.57541017,131.22,131.18,4.25453713]
[1768895573390,7.83029193,131.22,131.19,4.06629034]
[1768895573692,97.6,131.23,131.21,4.06629034]
[1768895573982,4.25488176,131.25,131.21,4.06629034]
[1768895573983,7.83029193,131.25,131.21,4.06629034]
[1768895574368,7.83029193,131.24,131.21,4.06629034]
[1768895574786,3.57541017,131.24,131.21,4.06629034]
[1768895574990,4.25488176,131.25,131.21,4.06629034]
[1768895575281,3.57541017,131.24,131.21,4.06629034]
[1768895575491,4.25488176,131.25,131.21,4.06629034]
[1768895575666,3.57541017,131.24,131.21,4.06629034]
[1768895577184,4.25488176,131.26,131.22,4.06629034]
[1768895577370,7.83029193,131.25,131.22,4.06629034]
[1768895577563,4.25488176,131.24,131.17,4.06629034]
[1768895577770,3.57541017,131.23,131.19,4.06629034]
[1768895577985,3.57541017,131.23,131.2,4.06629034]
[1768895578172,7.83029193,131.24,131.21,4.06629034]
[1768895578567,4.25488176,131.24,131.21,4.06629034]
[1768895578768,7.83029193,131.24,131.21,4.06629034]
[1768895578985,4.25488176,131.24,131.21,4.06629034]
[1768895579169,3.57541017,131.23,131.21,4.06629034]
[1768895579375,7.83029193,131.24,131.21,4.06629034]
[1768895579777,4.25488176,131.24,131.21,4.06629034]
[1768895580162,7.83029193,131.24,131.21,4.06629034]
[1768895580565,7.83029193,131.24,131.21,11.68754532]
[1768895580566,4.25488176,131.24,131.21,11.68754532]
[1768895580785,7.78774311,131.25,131.22,4.06629034]
[1768895581686,0.2,131.28,131.22,4.06629034]
[1768895581889,3.77541017,131.28,131.24,4.06629034]
[1768895582087,3.57541017,131.27,131.24,4.03629034]
[1768895583169,0.2,131.28,131.24,4.03629034]
[1768895583390,3.57541017,131.27,131.24,7.1e-07]
[1768895584080,4.49656067,131.28,131.24,7.1e-07]
[1768895584287,8.07197084,131.28,131.24,7.1e-07]
[1768895584470,8.07197084,131.28,131.24,7.61955795]
[1768895585278,8.07197084,131.28,131.24,4.06629034]
[1768895586376,3.57541017,131.27,131.23,11.68649913]
[1768895586578,3.57541017,131.25,131.22,11.68705277]
[1768895586798,3.57541017,131.27,131.23,4.06629034]
[1768895587015,4.29656067,131.27,131.23,4.06629034]
[1768895587220,4.29656067,131.27,131.24,11.6859185]
[1768895587519,8.07197084,131.28,131.24,11.6859185]
[1768895589931,7.87197084,131.26,131.22,11.68675411]
[1768895590110,7.87197084,131.25,131.22,4.06629034]
[1768895590427,7.87197084,131.24,131.2,11.68799712]
[1768895590646,4.29656067,131.24,131.21,4.06629034]
[1768895590820,7.87197084,131.24,131.21,4.06629034]
[1768895591200,4.29656067,131.24,131.21,4.06629034]
[1768895591537,7.87197084,131.23,131.2,4.06629034]
[1768895591902,4.29656067,131.2,131.16,4.06629034]
[1768895592203,7.87197084,131.2,131.16,4.06629034]
[1768895592621,4.29656067,131.2,131.16,4.06629034]
[1768895592924,7.87197084,131.2,131.16,4.06629034]
[1768895593503,3.57541017,131.2,131.16,4.06629034]
[1768895593902,7.87197084,131.2,131.16,4.06629034]
[1768895594313,3.57541017,131.19,131.16,4.06629034]
[1768895594909,3.57433439,131.19,131.16,4.06629034]
[1768895595119,3.57433439,131.19,131.14,7.62516259]
[1768895595120,4.29656067,131.18,131.14,20.76629034]
[1768895595302,7.87089506,131.18,131.15,4.06629034]
[1768895596009,4.29656067,131.18,131.15,4.06629034]
[1768895596203,7.87089506,131.18,131.15,4.06629034]
[1768895602413,7.87089506,131.17,131.13,4.06629034]
[1768895602616,3.57433439,131.17,131.14,4.06629034]
[1768895603621,4.29656067,131.18,131.14,4.06629034]
[1768895603926,3.57433439,131.17,131.14,4.06629034]
[1768895604339,7.87089506,131.18,131.14,4.06629034]
[1768895604906,3.57433439,131.19,131.15,4.44481413]
[1768895605512,4.08301861,131.2,131.15,4.44481413]
[1768895605712,7.657353,131.2,131.15,4.44481413]
[1768895606115,7.657353,131.2,131.16,4.44481413]
[1768895607214,7.657353,131.2,131.17,4.44481413]
[1768895607414,4.08301861,131.2,131.17,4.44481413]
[1768895608434,4.08301861,131.22,131.17,4.44481413]
[1768895608625,7.657353,131.23,131.18,4.44481413]
[1768895609633,7.657353,131.23,131.19,4.44481413]
[1768895610234,3.57433439,131.23,131.19,4.44481413]
[1768895610439,4.08301861,131.26,131.21,4.44481413]
[1768895610612,4.08301861,131.26,131.22,4.44481413]
[1768895610817,7.657353,131.26,131.22,4.44481413]
[1768895611920,3.57433439,131.27,131.23,4.44481413]
[1768895612634,7.857353,131.28,131.23,4.44481413]
[1768895612824,4.08301861,131.27,131.23,4.44481413]
[1768895613915,7.657353,131.27,131.23,4.44481413]
[1768895614325,4.08301861,131.27,131.23,4.44481413]
[1768895614553,7.657353,131.27,131.23,4.44481413]
[1768895614834,4.08301861,131.26,131.22,21.14481413]
[1768895615040,3.57433439,131.27,131.21,12.06592865]
[1768895615041,4.08301861,131.24,131.21,12.06592865]
[1768895615230,7.657353,131.25,131.21,12.06592865]
[1768895616241,7.657353,131.25,131.21,4.44481413]
[1768895616741,7.657353,131.24,131.2,28.76652401]
[1768895618215,7.657353,131.24,131.2,21.14481413]
[1768895618520,101.37433439,131.28,131.24,4.44481413]
[1768895618521,0.2,131.28,131.24,4.44481413]
[1768895618845,0.2,131.28,131.25,4.44481413]
[1768895619051,0.2,131.28,131.26,4.44481413]
[1768895621347,0.2,131.28,131.25,4.44481413]
[1768895623249,4.40753856,131.28,131.25,4.44481413]
[1768895623451,7.98187295,131.28,131.24,11.87092347]
[1768895626748,7.98187295,131.28,131.24,4.2515327]
[1768895626948,4.20753856,131.27,131.23,32.14586779]
[1768895627154,4.20753856,131.25,131.22,11.87198731]
[1768895627346,3.57433439,131.26,131.16,44.5069858]
[1768895627347,4.20753856,131.22,131.19,4.2515327]
[1768895627553,7.78187295,131.22,131.19,11.87370513]
[1768895627854,7.78187295,131.2,131.16,11.87561073]
[1768895628058,7.78187295,131.19,131.15,11.87626277]
[1768895628748,7.78187295,131.19,131.16,11.87578654]
[1768895629151,4.20753856,131.19,131.16,11.87578654]
[1768895630145,7.78187295,131.19,131.16,11.87578654]
[1768895630464,4.20753856,131.19,131.16,11.87578654]
[1768895631456,7.78187295,131.19,131.16,11.87578654]
[1768895632237,4.20753856,131.19,131.16,11.87578654]
[1768895632562,7.78187295,131.19,131.16,11.87578654]
[1768895632943,7.78187295,131.17,131.14,11.87663455]
[1768895634239,4.20753856,131.17,131.14,11.87663455]
[1768895634440,7.78187295,131.17,131.14,11.87663455]
[1768895635555,7.78187295,131.17,131.14,4.2515327]
[1768895635556,3.57433439,131.16,131.14,4.2515327]
[1768895635757,3.51433435,131.16,131.13,11.84032176]
[1768895636763,3.48456583,131.16,131.13,11.84032176]
[1768895636936,3.57433439,131.14,131.11,4.21449758]
[1768895637138,7.92375813,131.14,131.11,4.21449758]
[1768895637344,7.92375813,131.14,131.11,11.84156466]
[1768895638256,4.34942374,131.17,131.11,11.84156466]
[1768895638462,3.57433439,131.15,131.11,11.84156466]
[1768895638657,7.92375813,131.15,131.11,11.84156466]
[1768895639250,4.34942374,131.15,131.11,11.84156466]
[1768895640744,4.34942374,131.18,131.12,4.21449758]
[1768895640956,7.92375813,131.18,131.14,4.21449758]
[1768895642758,7.92375813,131.18,131.14,11.83967175]